bitfinex-derivatives/quotes_ETHF0:USTF0_20250816
["timestamp","ask_amount","ask_price","bid_price","bid_amount"]
[1755350138102,3.529,4413.0,4412.9,1.4818]
[1755350138295,3.2078,4413.5,4412.9,0.596]
[1755350138491,3.3694,4413.5,4413.4,0.596]
[1755350138794,3.529,4413.5,4413.4,1.4818]
[1755350139098,3.2078,4413.5,4413.4,1.4818]
[1755350139297,3.3694,4413.5,4413.4,1.4818]
[1755350139599,0.1596,4413.4,4413.1,0.6744]
[1755350139799,0.3212,4413.2,4413.1,1.4818]
[1755350141396,0.3212,4413.2,4413.1,0.8502]
[1755350141598,0.3212,4413.4,4413.3,0.596]
[1755350141802,0.1596,4413.3,4412.4,0.6316]
[1755350141995,0.3212,4412.5,4412.4,1.4818]
[1755350142195,0.3212,4412.5,4412.4,0.9214]
[1755350142390,0.1616,4412.5,4412.4,1.4818]
[1755350142600,0.3212,4412.5,4412.4,0.2542]
[1755350142902,0.3212,4412.5,4412.4,1.306]
[1755350143104,0.3212,4412.5,4412.4,1.4818]
[1755350143306,0.3212,4412.5,4412.4,4.497756]
[1755350143698,0.3212,4412.5,4412.4,3.866156]
[1755350144307,0.3212,4412.5,4412.4,3.015956]
[1755350144603,0.63242213,4412.5,4412.4,3.015956]
[1755350145204,3.47282213,4412.5,4410.9,0.2542]
[1755350145408,3.2078,4411.5,4411.4,1.4818]
[1755350146111,3.2078,4411.5,4411.4,1.0972]
[1755350146408,3.2078,4411.5,4411.4,1.4818]
[1755350147997,6.2078,4411.5,4410.6,0.2542]
[1755350148203,6.2078,4411.5,4409.4,0.45326]
[1755350148204,3.2078,4411.0,4410.9,1.4818]
[1755350148398,3.31233901,4411.0,4410.9,1.4818]
[1755350148601,3.52018162,4411.0,4410.3,0.2642]
[1755350148803,0.10889494,4410.9,4410.0,3.2078]
[1755350149008,3.2078,4410.4,4410.3,1.5238]
[1755350149605,3.2121,4410.4,4410.3,1.132]
[1755350149806,3.2078,4410.4,4410.3,1.5238]
[1755350150403,3.2078,4411.0,4410.9,0.6043]
[1755350150606,3.41455781,4411.0,4410.9,1.5238]
[1755350150909,3.2078,4411.0,4410.9,1.5238]
[1755350151304,3.51896977,4411.0,4410.9,1.5238]
[1755350151505,3.41447406,4411.0,4410.9,1.5238]
[1755350151705,3.2078,4411.0,4410.9,1.5238]
[1755350152009,3.2078,4411.6,4410.9,1.5238]
[1755350152205,3.2078,4411.6,4411.5,0.3918]
[1755350152407,3.2078,4411.6,4411.5,1.5238]
[1755350152800,3.2078,4411.6,4411.5,0.5277]
[1755350153004,3.8422,4411.6,4411.5,1.132]
[1755350153203,3.8422,4411.6,4411.5,0.4287]
[1755350153408,3.77891333,4411.6,4410.6,0.2642]
[1755350153607,0.31951333,4411.5,4411.4,1.5238]
[1755350154410,0.95191333,4411.5,4411.4,1.5238]
[1755350154710,0.57011333,4411.5,4410.4,3.015956]
[1755350154907,0.95391333,4411.4,4411.3,0.1645]
[1755350155108,0.95391333,4411.4,4411.3,0.8698]
[1755350155309,0.95391333,4411.4,4411.3,1.5238]
[1755350155611,0.56911333,4411.4,4411.3,1.5238]
[1755350156006,0.57011333,4411.4,4411.3,1.5238]
[1755350156213,0.95391333,4411.4,4411.3,1.5238]
[1755350157012,0.31951333,4411.4,4411.3,1.132]
[1755350157212,0.31951333,4411.4,4411.3,1.5238]
[1755350157719,24.4954,4412.2,4412.1,0.6043]
[1755350157923,25.19574076,4412.2,4412.1,1.5238]
[1755350158114,4.15974076,4412.2,4412.1,1.5238]
[1755350158719,3.2078,4412.2,4412.1,1.5238]
[1755350158918,3.2078,4413.0,4412.1,0.6043]
[1755350159120,0.3205817,4412.9,4412.8,1.5238]
[1755350160812,3.2078,4413.0,4412.8,1.5238]
[1755350161014,35.8538,4413.6,4412.9,0.9195]
[1755350161317,35.8538,4413.6,4412.8,0.1776]
[1755350161318,35.8538,4413.6,4413.5,1.5238]
[1755350161514,36.17455985,4413.6,4413.5,1.5238]
[1755350161716,1.0568,4413.0,4412.9,3.280156]
[1755350161916,5.1335874,4413.0,4412.9,3.280156]
[1755350162518,0.8689874,4413.0,4412.9,3.884456]
[1755350162722,0.32075985,4413.0,4412.9,4.276256]
[1755350163021,1.37755985,4413.0,4412.9,3.444656]
[1755350163323,0.32075985,4413.0,4412.9,4.276256]
[1755350163819,0.32075985,4413.0,4412.9,4.539756]
[1755350166516,0.32075985,4413.0,4412.9,7.747556]
[1755350166822,3.2078,4413.7,4413.6,1.5238]
[1755350167223,3.7926,4414.5,4414.4,0.6043]
[1755350167517,4.9791103,4414.5,4414.4,1.5238]
[1755350167717,3.7926,4414.5,4414.4,1.5238]
[1755350168515,1.2225,4414.9,4414.8,0.6043]
[1755350168712,1.77101381,4414.9,4414.8,1.5238]
[1755350169115,1.2225,4414.9,4414.8,1.5238]
[1755350169524,1.2225,4414.9,4414.8,1.132]
[1755350169723,1.4747,4414.9,4414.8,0.4287]
[1755350171119,22.4997,4414.9,4414.8,0.4287]
[1755350172019,22.2475,4414.9,4414.8,0.8685]
[1755350172220,22.4997,4414.9,4414.8,0.8685]
[1755350172925,22.2475,4414.9,4414.8,1.5238]
[1755350173127,0.5848,4414.9,4414.8,1.5238]
[1755350173324,21.6058,4414.9,4414.8,1.5238]
[1755350173521,3.2078,4415.1,4414.9,0.9195]
[1755350173721,3.2078,4415.1,4415.0,1.5238]
[1755350174326,4.4303,4415.1,4415.0,1.5238]
[1755350174724,24.2288,4415.1,4415.0,1.5238]
[1755350175124,24.6469,4415.1,4415.0,1.5238]
[1755350175322,25.1964,4415.1,4415.0,4.539756]
[1755350175825,25.4513,4415.1,4415.0,4.539756]
[1755350176017,25.4513,4415.1,4415.0,3.884456]
[1755350176215,25.4513,4415.1,4415.0,4.539756]
[1755350178131,25.7035,4415.1,4415.0,3.444656]
[1755350178428,24.4784,4415.1,4415.0,4.539756]
[1755350179031,21.016,4415.1,4415.0,4.539756]
[1755350179627,21.015,4415.3,4415.2,0.9253]
[1755350179836,21.015,4415.3,4415.2,1.5186]
[1755350180229,21.015,4415.3,4415.2,4.534556]
[1755350180932,3.2078,4415.6,4415.2,3.609256]
[1755350181136,0.9908,4415.4,4415.3,1.5186]
[1755350181436,1.2326,4415.4,4415.3,1.5186]
[1755350181832,0.6003,4415.4,4415.3,1.5186]
[1755350182031,1.2326,4415.4,4415.2,3.015956]
[1755350182229,1.4927,4415.4,4415.3,0.2666]
[1755350182437,0.6003,4414.9,4414.8,0.8599]
[1755350182730,1.2326,4414.9,4414.8,0.8599]
[1755350183532,1.4927,4414.9,4414.8,0.434]
[1755350183731,1.4927,4414.9,4414.8,1.1242]
[1755350183936,1.4927,4414.9,4414.8,0.2666]
[1755350184135,1.2326,4414.9,4414.5,0.3944]
[1755350184327,22.2446,4415.0,4414.9,1.5186]
[1755350184534,22.5047,4415.0,4414.9,1.5186]
[1755350184733,22.61184866,4415.0,4414.9,0.8599]
[1755350185135,22.5047,4415.0,4414.9,0.8599]
[1755350185333,22.6119152,4415.0,4414.6,0.5309]
[1755350185540,0.6003,4414.8,4414.7,0.2666]
[1755350185840,1.81132903,4414.8,4414.7,0.2666]
[1755350186634,1.81132903,4414.8,4414.7,3.714356]
[1755350186843,1.81132903,4414.8,4414.7,4.140156]
[1755350187034,1.81132903,4414.8,4414.7,4.534556]
[1755350187835,21.32762903,4414.8,4414.7,4.534556]
[1755350188041,22.56022903,4414.8,4414.7,4.534556]
[1755350188338,0.32157983,4414.8,4414.7,4.534556]
[1755350188732,21.009,4415.1,4414.7,4.003656]
[1755350189035,0.32151203,4415.0,4414.9,1.5186]
[1755350190035,5.02201203,4415.0,4414.9,0.2666]
[1755350190237,1.4927,4414.9,4414.8,0.2666]
[1755350190437,1.81421203,4414.9,4414.8,0.2666]
[1755350190635,0.8924,4414.8,4414.6,0.2666]
[1755350190840,1.81421203,4414.7,4414.6,0.2666]
[1755350191042,22.82121203,4414.7,4414.6,0.2666]
[1755350191238,22.82130753,4414.7,4414.6,0.2666]
[1755350191645,22.82130753,4414.7,4414.6,0.434]
[1755350193440,22.56120753,4414.7,4414.6,0.8599]
[1755350193635,21.32860753,4414.7,4414.6,1.5186]
[1755350194039,22.56120753,4414.7,4414.6,1.1242]
[1755350194236,22.56120753,4414.7,4414.6,1.5186]
[1755350194641,22.56120753,4414.7,4414.0,3.2078]
[1755350194842,0.6003,4414.3,4414.2,0.8599]
[1755350195042,1.55420753,4414.3,4414.2,1.1242]
[1755350195241,1.55420753,4414.3,4414.2,1.5186]
[1755350196847,1.55420753,4414.3,4414.2,4.534556]
[1755350197043,1.16370753,4414.3,4414.2,4.534556]
[1755350197248,0.32160753,4414.3,4414.2,4.534556]
[1755350197949,3.2078,4415.0,4414.2,4.534556]
[1755350198147,0.32277936,4414.9,4414.8,1.5186]
[1755350201256,0.10792854,4414.9,4414.8,1.5186]
[1755350202452,21.004,4415.5,4415.4,0.1674]
[1755350202647,21.4387,4415.5,4415.4,1.5186]
[1755350203454,22.2549,4415.5,4415.4,1.5186]
[1755350203654,22.4967,4415.5,4415.4,1.5186]
[1755350205057,21.0,4415.8,4415.4,0.5933]
[1755350205253,0.4347,4415.8,4415.7,1.5186]
[1755350205857,33.2826,4416.3,4416.2,0.9877]
[1755350206055,0.4347,4416.3,4416.2,1.5186]
[1755350206259,0.1771,4416.3,4416.2,1.5186]
[1755350206660,0.6506,4416.6,4416.5,0.5933]
[1755350206853,20.996,4416.7,4416.5,1.5186]
[1755350207059,0.8924,4417.0,4416.6,1.5186]
[1755350207367,1.4927,4416.8,4416.7,1.5186]
[1755350209456,20.993,4416.9,4416.7,0.5933]
[1755350209663,24.2008,4417.3,4417.2,0.5881]
[1755350209863,3.6422,4417.3,4417.2,1.4656]
[1755350210063,4.77817546,4417.3,4417.2,1.4656]
[1755350210264,5.03367546,4417.3,4417.2,4.481556]
[1755350211963,4.13057546,4417.3,4417.2,4.481556]
[1755350212968,4.92957449,4417.3,4417.2,4.481556]
[1755350213962,4.02647449,4417.3,4417.2,4.481556]
[1755350214158,21.6356,4417.6,4417.3,0.8775]
[1755350214360,0.4344,4417.6,4417.5,1.4656]
[1755350214863,20.988,4417.7,4417.6,1.0434]
[1755350215064,20.988,4417.7,4417.6,1.4656]
[1755350215265,21.1573,4417.7,4417.6,1.4656]
[1755350215566,22.2431,4417.7,4417.6,1.4656]
[1755350215766,22.4986,4417.7,4417.6,1.4656]
[1755350215967,0.4344,4417.7,4417.6,1.4656]
[1755350216168,3.714,4418.0,4417.7,0.5006]
[1755350216468,24.8003,4418.0,4417.9,1.4656]
[1755350216667,25.0108332,4418.0,4417.9,1.4656]
[1755350216867,4.4227332,4418.0,4417.9,1.4656]
[1755350217067,25.1972,4418.0,4417.9,1.4656]
[1755350217470,25.7034,4418.0,4417.9,1.4656]
[1755350217967,25.7034,4418.0,4417.9,1.2906]
[1755350218163,25.7034,4418.0,4417.7,3.015956]
[1755350218164,0.6075,4417.8,4417.7,3.015956]
[1755350218360,1.5106,4417.8,4417.7,3.015956]
[1755350218870,1.5106,4417.8,4417.7,3.181856]
[1755350219064,1.5106,4417.8,4417.7,3.356856]
[1755350219264,1.5106,4417.8,4417.7,3.604056]
[1755350219569,1.5106,4417.8,4417.7,4.481556]
[1755350219866,24.1928,4418.0,4417.7,4.481556]
[1755350220072,3.2078,4418.0,4417.8,1.4656]
[1755350220261,3.2078,4418.0,4417.9,1.4656]
[1755350220567,0.4344,4418.0,4417.9,1.4656]
[1755350220871,0.8582,4418.0,4417.9,1.4656]
[1755350221059,1.2551,4418.0,4417.9,1.4656]
[1755350221665,0.3555,4418.2,4417.9,1.4656]
[1755350221871,0.1,4418.2,4418.1,0.5881]
[1755350222071,0.2693,4418.2,4418.1,1.4656]
[1755350222266,0.1,4418.2,4418.1,1.4656]
[1755350222769,1.1044,4418.2,4418.1,1.2217]
[1755350222971,1.6106,4418.2,4418.1,1.4656]
[1755350224672,0.1,4418.2,4418.1,1.4656]
[1755350225272,0.2693,4418.2,4418.1,1.4656]
[1755350225968,1.3551,4418.2,4418.1,1.4656]
[1755350226172,1.6106,4418.2,4418.1,1.4656]
[1755350228970,0.5344,4418.2,4418.1,1.4656]
[1755350229369,0.7075,4418.2,4418.1,1.4656]
[1755350231278,1.3551,4418.2,4418.1,1.4656]
[1755350233377,1.6106,4418.2,4418.1,1.4656]
[1755350233577,1.6106,4418.2,4418.1,0.5881]
[1755350233777,1.2551,4418.1,4418.0,0.5881]
[1755350233977,1.5106,4418.1,4418.0,0.8448]
[1755350234276,0.6075,4418.1,4417.7,0.3769]
[1755350234480,1.5106,4417.8,4417.7,1.2089]
[1755350234881,1.5106,4417.8,4417.7,1.4656]
[1755350236282,1.72122299,4417.8,4417.7,3.015956]
[1755350236879,1.72122299,4417.8,4417.7,4.481556]
[1755350239374,1.72122299,4417.8,4417.7,3.015956]
[1755350239983,1.72122299,4417.8,4417.7,3.182356]
[1755350240279,1.72122299,4417.8,4417.7,3.015956]
[1755350241179,2.26994842,4417.8,4417.7,3.015956]
[1755350241985,2.26994842,4417.8,4417.7,3.359356]
[1755350242289,2.26994842,4417.8,4417.7,4.132756]
[1755350242587,2.26994842,4417.8,4417.7,3.015956]
[1755350243790,2.01444842,4417.8,4417.7,4.132756]
[1755350244081,1.46572299,4417.8,4417.7,4.529756]
[1755350244285,1.72612299,4417.8,4417.7,4.529756]
[1755350251891,0.21062299,4417.8,4417.7,4.529756]
[1755350253893,0.1,4418.2,4418.1,0.5967]
[1755350254088,0.1,4418.2,4418.1,1.5138]
[1755350254285,0.1,4418.2,4418.1,4.7216]
[1755350254984,0.310458,4418.2,4418.1,4.7216]
[1755350255187,0.1,4418.2,4418.1,4.7216]
[1755350260794,0.1,4418.2,4418.1,7.7216]
[1755350261499,0.8647,4419.2,4419.1,0.5967]
[1755350261702,1.71296385,4419.2,4419.1,1.5138]
[1755350262796,0.37998743,4419.2,4419.1,1.5138]
[1755350262999,0.6381,4420.1,4419.2,0.9171]
[1755350263201,0.6043,4419.6,4419.5,4.7216]
[1755350263594,0.9839,4419.6,4419.5,4.7216]
[1755350263794,0.6043,4419.6,4419.5,4.7216]
[1755350264596,0.8985,4419.9,4419.6,0.9171]
[1755350264597,0.6381,4419.9,4419.6,0.9171]
[1755350264795,0.6381,4419.9,4419.5,3.8045]
[1755350264796,0.8147,4419.9,4419.8,1.5138]
[1755350264993,1.0725,4419.9,4419.8,1.5138]
[1755350265393,0.4344,4419.9,4419.8,1.5138]
[1755350265599,0.2604,4420.2,4419.8,0.5967]
[1755350265797,0.2604,4420.2,4420.1,1.5138]
[1755350265798,1.1232,4420.2,4420.1,1.5138]
[1755350266003,1.5028,4420.2,4420.1,0.5967]
[1755350266202,1.2424,4420.2,4420.1,0.5967]
[1755350266402,0.4344,4420.2,4420.1,0.5967]
[1755350266701,1.5028,4420.5,4420.4,0.5967]
[1755350267005,1.5028,4420.5,4420.4,1.5138]
[1755350267698,0.6381,4420.9,4420.4,1.5138]
[1755350268011,0.8985,4420.9,4420.5,0.5967]
[1755350268208,1.0751,4420.9,4420.8,1.5138]
[1755350268505,1.5028,4420.9,4420.8,1.5138]
[1755350268703,0.6409,4422.3,4420.9,1.34149]
[1755350268904,1.4726,4421.8,4421.7,3.2078]
[1755350269303,1.4726,4421.8,4421.7,3.8077]
[1755350269506,1.4726,4421.8,4421.7,4.6971]
[1755350270617,1.4726,4421.8,4421.7,7.713056]
[1755350271408,1.4726,4421.8,4421.7,4.505256]
[1755350272115,0.22167554,4424.1,4421.8,0.8894]
[1755350272116,3.2078,4423.0,4421.8,0.8894]
[1755350272319,0.5856,4421.8,4421.7,3.015956]
[1755350272510,1.4726,4421.8,4421.7,2.216356]
[1755350272817,1.4726,4421.8,4421.7,1.607256]
[1755350273209,1.2265,4421.8,4421.7,1.607256]
[1755350273609,4.2265,4421.8,4421.7,1.607256]
[1755350274019,1.2265,4421.8,4421.7,1.607256]
[1755350275018,1.2265,4421.8,4421.7,1.867356]
[1755350275420,1.2265,4421.8,4421.7,1.607256]
[1755350275613,1.2265,4421.8,4421.7,1.867356]
[1755350276314,0.2461,4422.7,4421.9,0.8894]
[1755350276505,0.2461,4422.7,4421.8,0.8894]
[1755350276710,0.2461,4422.7,4421.9,0.8894]
[1755350276908,0.1743,4422.2,4422.1,0.4311]
[1755350277112,0.1743,4422.2,4422.1,1.4893]
[1755350278217,0.4204,4422.4,4422.3,0.5999]
[1755350278414,0.4204,4422.4,4422.3,1.4893]
[1755350279016,3.2078,4423.4,4422.3,1.4893]
[1755350279313,0.1743,4422.5,4422.4,1.4893]
[1755350280021,0.4204,4422.5,4422.4,1.4893]
[1755350280218,0.4204,4422.5,4422.4,3.096556]
[1755350280523,0.4204,4422.5,4422.4,2.844456]
[1755350280823,0.4204,4422.5,4422.4,2.296256]
[1755350281019,0.4204,4422.5,4422.4,1.607256]
[1755350281321,3.4204,4422.5,4422.4,1.166456]
[1755350281513,3.62219274,4422.5,4422.4,1.166456]
[1755350282529,0.4204,4422.5,4422.4,1.426556]
[1755350282817,3.2078,4422.9,4422.8,1.4893]
[1755350283324,3.2078,4422.9,4422.8,1.1121]
[1755350284124,3.2078,4422.9,4422.8,1.4893]
[1755350284518,3.2078,4423.4,4422.8,1.4893]
[1755350284721,3.2078,4423.4,4422.8,1.2292]
[1755350284922,3.2078,4423.4,4422.9,0.2521]
[1755350285118,0.20186303,4423.3,4423.1,0.2601]
[1755350285326,3.2078,4423.4,4423.1,0.2601]
[1755350285521,3.20189946,4423.3,4423.0,1.166456]
[1755350285726,0.20191161,4423.2,4423.0,1.166456]
[1755350286024,0.2019174,4423.1,4423.0,1.166456]
[1755350288724,0.2019174,4423.1,4423.0,1.426556]
[1755350289029,0.2019174,4423.1,4423.0,1.843156]
[1755350289228,0.2019174,4423.1,4423.0,2.655756]
[1755350292924,0.74930539,4423.1,4423.0,2.278556]
[1755350293431,0.74930539,4423.1,4423.0,1.166456]
[1755350293827,0.54738799,4423.1,4423.0,2.026456]
[1755350294029,0.20284605,4423.1,4423.0,2.655756]
[1755350294325,0.75023404,4423.1,4423.0,2.655756]
[1755350300832,3.2078,4423.4,4423.0,1.766356]
[1755350301032,3.2078,4423.9,4423.2,4.7215]
[1755350301232,3.2078,4423.9,4423.8,0.5912]
[1755350301444,3.991,4423.9,4423.8,1.5137]
[1755350302132,3.5705,4423.9,4423.8,1.5137]
[1755350302327,3.2078,4423.9,4423.8,1.5137]
[1755350303129,3.31505659,4423.9,4423.8,1.5137]
[1755350303736,0.10725659,4423.9,4423.8,1.5137]
[1755350304133,3.2078,4424.6,4423.8,1.5137]
[1755350304435,0.1071804,4424.5,4424.4,0.5912]
[1755350304636,0.1071804,4424.5,4424.4,1.5137]
[1755350304838,0.8903804,4424.5,4424.4,1.5137]
[1755350305231,0.8903804,4424.5,4424.4,2.680156]
[1755350305435,1.1617804,4424.5,4424.4,1.166456]
[1755350305737,1.4103804,4424.5,4424.4,1.166456]
[1755350306134,1.4103804,4424.5,4424.4,1.780456]
[1755350306334,1.4103804,4424.5,4424.4,1.166456]
[1755350307129,1.0548804,4424.5,4424.4,2.022656]
[1755350307333,1.4103804,4424.5,4424.4,1.166456]
[1755350307532,0.1071804,4424.5,4424.4,1.166456]
[1755350307732,0.1071804,4424.5,4424.4,2.680156]
[1755350307937,0.5276804,4424.5,4424.4,2.680156]
[1755350308341,0.1071804,4424.5,4424.4,2.680156]
[1755350309131,0.1071804,4424.5,4424.4,5.887956]
[1755350309332,3.7928,4425.1,4425.0,1.1223]
[1755350309534,0.585,4424.5,4424.4,2.288756]
[1755350309732,1.1617,4424.5,4424.4,2.680156]
[1755350309936,3.2078,4425.1,4424.5,0.5311]
[1755350310248,1.4103,4424.8,4424.7,1.1223]
[1755350310437,1.1617,4424.8,4424.7,1.1223]
[1755350310637,0.7832,4424.8,4424.7,1.5137]
[1755350311540,0.9477,4424.8,4424.7,1.5137]
[1755350312047,1.1617,4424.8,4424.7,1.5137]
[1755350312440,3.4218,4425.1,4424.8,0.6564]
[1755350312745,4.6181,4425.1,4424.5,0.9225]
[1755350313039,0.74553079,4425.0,4424.4,1.166456]
[1755350313346,0.20017262,4424.9,4424.8,1.5137]
[1755350313943,1.14787262,4424.9,4424.8,1.5137]
[1755350314144,1.36187262,4424.9,4424.8,1.5137]
[1755350314542,0.20017262,4424.9,4424.8,1.5137]
[1755350314738,3.2078,4425.1,4424.8,1.5137]
[1755350315045,3.2078,4425.1,4425.0,1.5137]
[1755350315237,3.40791505,4425.1,4425.0,1.5137]
[1755350316053,0.20011505,4425.1,4425.0,1.5137]
[1755350316237,0.1,4425.2,4425.1,1.5137]
[1755350316943,3.2078,4426.1,4425.1,1.5137]
[1755350317247,3.3719,4426.1,4426.0,1.5137]
[1755350317449,3.57180787,4426.1,4426.0,1.5137]
[1755350317849,3.40770787,4426.1,4426.0,1.5137]
[1755350318348,3.2078,4426.1,4426.0,1.5137]
[1755350318641,3.2078,4426.7,4426.6,1.5137]
[1755350319454,3.2078,4427.2,4427.1,1.5137]
[1755350319748,3.40745204,4427.2,4427.1,1.5137]
[1755350320138,3.991,4427.2,4427.1,1.1223]
[1755350320337,4.6181,4427.2,4427.1,0.8562]
[1755350320538,3.2078,4427.2,4427.1,1.5137]
[1755350321044,4.6181,4427.2,4427.1,1.5137]
[1755350321752,0.4205,4426.1,4426.0,1.1223]
[1755350321943,0.4205,4426.1,4426.0,1.5137]
[1755350322745,3.6704,4426.6,4425.8,3.6496]
[1755350322746,0.585,4425.9,4425.8,3.6496]
[1755350322951,0.9477,4426.6,4426.5,1.2487]
[1755350323145,3.2078,4427.1,4427.0,1.5137]
[1755350323846,3.3719,4427.1,4427.0,1.5137]
[1755350324044,0.1641,4426.5,4426.4,0.7079]
[1755350324348,0.3627,4426.9,4426.4,0.5912]
[1755350324552,0.9477,4426.9,4426.8,1.5137]
[1755350324846,3.4218,4427.1,4426.3,0.2661]
[1755350324847,0.6113,4426.8,4426.3,0.2661]
[1755350325153,0.4205,4426.4,4426.3,1.5137]
[1755350325548,0.585,4426.4,4426.1,0.265]
[1755350325749,0.585,4426.4,4426.0,0.6575]
[1755350325750,1.4103,4426.2,4426.0,0.2661]
[1755350325945,1.4103,4425.9,4425.8,0.265]
[1755350326248,1.4103,4425.9,4425.8,1.1223]
[1755350326452,1.4103,4425.9,4425.8,1.5137]
[1755350326752,0.9477,4425.9,4425.8,1.5137]
[1755350327850,0.9477,4425.9,4425.8,1.50216122]
[1755350328051,1.1963,4425.9,4425.8,1.50216122]
[1755350328351,1.4219,4425.9,4425.8,1.50216122]
[1755350328752,1.4219,4425.9,4425.8,0.84466122]
[1755350328942,1.4219,4425.9,4425.7,3.2078]
[1755350329144,1.4219,4425.9,4424.9,44.0078]
[1755350329145,3.2078,4425.9,4424.9,44.0078]
[1755350329343,1.473,4425.3,4425.2,0.9901]
[1755350329549,0.9891,4425.3,4425.2,0.9901]
[1755350329844,1.473,4425.3,4425.2,1.2525]
[1755350330049,0.649,4425.2,4424.7,0.2533]
[1755350330247,0.649,4425.2,4422.4,3.92469889]
[1755350330248,4.2907,4424.8,4424.1,0.61741445]
[1755350330446,0.9891,4424.7,4424.6,0.5937]
[1755350330641,0.874,4425.4,4425.3,0.1621]
[1755350330847,3.6368,4425.8,4425.7,0.5937]
[1755350331050,0.1641,4425.8,4425.7,1.5058]
[1755350331349,0.00855486,4425.9,4425.8,1.5058]
[1755350333246,0.00855486,4425.9,4425.8,4.5058]
[1755350333447,0.00855486,4425.9,4425.8,1.5058]
[1755350336644,0.00855486,4425.9,4425.6,3.2078]
[1755350336853,1.473,4425.8,4425.7,1.5058]
[1755350337158,0.9891,4425.8,4425.7,1.5058]
[1755350337344,1.473,4425.8,4425.7,1.5058]
[1755350337559,1.473,4425.5,4425.4,0.847]
[1755350337749,1.473,4425.5,4425.4,1.5058]
[1755350338649,1.473,4425.5,4425.4,1.1094]
[1755350338851,1.473,4425.5,4425.4,0.847]
[1755350339255,1.473,4425.5,4425.4,1.5058]
[1755350339650,1.473,4425.5,4425.4,4.521756]
[1755350340055,0.9891,4425.5,4425.4,4.521756]
[1755350340256,0.00855486,4425.9,4425.4,4.521756]
[1755350340455,1.67437323,4425.8,4425.4,3.015956]
[1755350340653,0.599,4425.6,4425.5,1.1094]
[1755350340852,1.473,4425.6,4425.5,1.1094]
[1755350341352,0.00855486,4425.9,4425.8,0.4316]
[1755350341551,0.00855486,4425.9,4425.8,4.7136]
[1755350341951,0.60755486,4425.9,4425.4,3.412356]
[1755350342158,0.599,4425.6,4425.5,1.5058]
[1755350342351,1.473,4425.6,4425.5,1.5058]
[1755350342553,0.429,4425.6,4425.5,1.5058]
[1755350342853,0.82765486,4425.9,4425.8,0.5937]
[1755350343054,1.48155486,4425.9,4425.8,1.5058]
[1755350343556,0.99765486,4425.9,4425.8,1.5058]
[1755350343758,0.82765486,4425.9,4425.8,1.5058]
[1755350344056,0.00855486,4425.9,4425.8,4.7136]
[1755350345455,3.2078,4426.8,4425.8,4.7136]
[1755350345756,3.2078,4426.8,4426.7,1.5058]
[1755350345954,4.6808,4426.8,4426.7,1.1094]
[1755350346353,4.6808,4426.8,4426.7,1.5058]
[1755350346753,3.2078,4426.8,4426.7,1.5058]
[1755350346948,3.2078,4427.8,4427.7,1.2525]
[1755350347153,3.2078,4429.7,4427.9,0.3964]
[1755350347354,3.2078,4430.9,4429.6,3.2078]
[1755350347655,3.2078,4430.9,4427.9,32.538]
[1755350347656,0.874,4430.7,4429.3,0.2624]
[1755350347855,0.3901,4430.2,4429.4,0.6497]
[1755350348057,0.874,4429.9,4429.0,3.7235]
[1755350348254,0.874,4429.2,4428.4,0.2533]
[1755350348451,3.2078,4428.7,4427.8,3.2078]
[1755350348651,0.874,4428.6,4427.8,3.2078]
[1755350348855,0.2589,4428.1,4427.2,3.2078]
[1755350349162,0.85308903,4427.7,4427.3,0.2533]
[1755350349363,0.85308903,4427.7,4427.5,0.9121]
[1755350349549,0.85308903,4427.7,4427.3,0.9121]
[1755350349753,0.85308903,4427.7,4427.4,0.2533]
[1755350349754,0.4839,4427.6,4427.4,0.2533]
[1755350349949,0.4839,4427.4,4427.2,3.4611]
[1755350350160,1.72708903,4427.3,4427.2,3.2078]
[1755350350363,0.85308903,4427.3,4427.2,4.1199]
[1755350351055,1.72708903,4427.3,4427.2,3.2078]
[1755350351261,0.225,4427.0,4426.6,0.2533]
[1755350351458,3.2078,4426.8,4425.9,0.2624]
[1755350351658,0.2589,4427.0,4426.1,0.9121]
[1755350351864,0.649,4427.0,4426.1,0.9121]
[1755350352160,0.85308903,4426.6,4426.0,3.2078]
[1755350352360,0.3901,4426.5,4426.3,0.9121]
[1755350352660,0.85308903,4426.6,4426.0,3.4702]
[1755350352851,0.6151,4426.5,4426.0,6.223756]
[1755350353057,0.874,4426.3,4426.1,0.2533]
[1755350353255,1.24318903,4426.2,4426.1,0.9121]
[1755350353453,0.85308903,4426.2,4426.1,0.9121]
[1755350354662,1.07808903,4426.2,4426.0,3.015956]
[1755350354857,0.874,4426.1,4426.0,3.015956]
[1755350355365,0.85308903,4426.1,4426.0,6.486156]
[1755350355861,0.85308903,4426.1,4426.0,7.135856]
[1755350356166,0.2589,4427.3,4426.0,10.135856]
[1755350356360,3.2078,4427.7,4427.1,0.3964]
[1755350356562,0.2557,4427.8,4427.0,0.9121]
[1755350356758,0.2589,4427.9,4427.1,0.9121]
[1755350356960,0.2589,4427.9,4427.2,0.3964]
[1755350357166,0.2589,4427.9,4427.3,0.2533]
[1755350357355,0.649,4427.8,4427.5,0.9121]
[1755350357562,0.2589,4427.7,4427.5,0.2624]
[1755350357757,0.2589,4427.7,4427.6,0.6497]
[1755350357967,0.9047,4428.2,4426.9,3.2078]
[1755350358261,3.2078,4428.3,4426.9,3.2078]
[1755350358565,0.9047,4428.0,4426.9,3.2078]
[1755350358768,0.8662,4427.9,4426.9,3.2078]
[1755350358959,3.2078,4428.3,4426.9,3.2078]
[1755350359157,0.8662,4428.2,4426.9,3.2078]